bitfinex/quotes_SOLUSD_20241218
["timestamp","ask_amount","ask_price","bid_price","bid_amount"]
[1734552157569,23.776884,211.19,211.05,78.5286727]
[1734552157570,30.0,211.1,211.05,78.5286727]
[1734552157740,50.0,211.07,211.05,6.77454239]
[1734552157950,20.0,211.01,211.0,29.92012326]
[1734552158256,50.0,211.01,210.91,37.73824339]
[1734552158565,13.0298,211.07,210.91,37.73824339]
[1734552158888,30.0,211.06,210.91,37.73824339]
[1734552159174,0.10506513,211.07,210.97,35.04617189]
[1734552159469,3.5534,211.06,210.97,17.82977189]
[1734552159642,30.0,210.99,210.92,40.35814562]
[1734552159845,214.49150732,211.04,210.87,11.251795]
[1734552160063,7.14731362,210.99,210.87,11.251795]
[1734552160273,10.78322943,210.98,210.72,23.79985714]
[1734552160563,30.0,210.88,210.69,42.48777776]
[1734552160766,20.0,210.85,210.68,0.4128108]
[1734552161345,42.52184482,210.75,210.68,0.4128108]
[1734552161544,42.52184482,210.81,210.72,42.52184482]
[1734552161840,20.0,210.74,210.68,0.4128108]
[1734552162044,108.78580139,210.74,210.68,0.4128108]
[1734552162349,66.26395657,210.74,210.72,42.52184482]
[1734552162559,87.34794275,210.74,210.7,182.52184482]
[1734552162772,87.34794275,210.74,210.7,140.0]
[1734552162948,87.34794275,210.74,210.7,145.63175063]
[1734552163669,87.34794275,210.74,210.7,103.10990581]
[1734552163865,63.57794275,210.74,210.71,42.52184482]
[1734552164267,63.57794275,210.74,210.7,145.63175063]
[1734552164669,63.57794275,210.74,210.7,103.10990581]
[1734552164973,63.57794275,210.74,210.7,30.19141863]
[1734552165351,42.52184482,210.73,210.7,30.19141863]
[1734552166463,63.57794275,210.74,210.7,30.19141863]
[1734552166671,63.57794275,210.74,210.7,72.71326345]
[1734552166672,44.68904316,210.72,210.7,72.71326345]
[1734552166853,23.60505698,210.72,210.7,30.19141863]
[1734552167991,23.60505698,210.72,210.69,42.52184482]
[1734552168200,23.60505698,210.72,210.68,0.4128108]
[1734552168485,65.65979972,210.69,210.68,0.4128108]
[1734552168653,23.37949641,210.72,210.68,0.4128108]
[1734552168860,65.65979972,210.69,210.68,0.4128108]
[1734552169060,23.15819587,210.68,210.56,102.61806711]
[1734552169252,23.01387446,210.7,210.62,42.52184482]
[1734552169457,23.15819587,210.68,210.57,0.71208069]
[1734552169762,65.90134123,210.72,210.63,42.52184482]
[1734552169987,65.90134123,210.72,210.64,0.12549]
[1734552170200,66.79114536,210.72,210.63,42.52184482]
[1734552170480,23.1379549,210.69,210.61,42.52184482]
[1734552170661,23.37459605,210.71,210.61,42.52184482]
[1734552170988,23.56487599,210.67,210.59,42.52184482]
[1734552171162,23.56487599,210.67,210.56,60.46615752]
[1734552171163,23.43402872,210.65,210.57,42.52184482]
[1734552171483,23.30939265,210.63,210.56,60.46615752]
[1734552171879,42.52184482,210.64,210.56,60.46615752]
[1734552172763,42.52184482,210.62,210.56,60.46615752]
[1734552172982,42.52184482,210.64,210.56,102.98800234]
[1734552173184,0.8902995,210.71,210.63,0.12549]
[1734552173484,20.91904316,210.73,210.66,42.52184482]
[1734552173657,20.91904316,210.73,210.68,42.52184482]
[1734552173856,20.91904316,210.73,210.67,12.413]
[1734552174071,12.37397631,210.74,210.67,12.413]
[1734552174281,42.52184482,210.7,210.67,12.413]
[1734552174702,42.52184482,210.68,210.56,127.53210234]
[1734552174864,42.52184482,210.63,210.56,73.13745752]
[1734552175065,42.52184482,210.61,210.56,73.13745752]
[1734552175458,2.373,210.71,210.56,73.13745752]
[1734552175459,42.52184482,210.66,210.56,115.65930234]
[1734552175671,42.52184482,210.65,210.56,115.65930234]
[1734552175983,21.76905207,210.64,210.56,73.13745752]
[1734552176568,42.52184482,210.67,210.56,115.65930234]
[1734552176770,9.54376075,210.73,210.65,42.52184482]
[1734552176973,42.52184482,210.77,210.67,42.52184482]
[1734552177176,42.52184482,210.77,210.69,42.52184482]
[1734552177466,42.52184482,210.75,210.61,20.0]
[1734552177683,42.52184482,210.7,210.61,62.52184482]
[1734552177887,42.52184482,210.74,210.62,23.776884]
[1734552178105,42.52184482,210.78,210.69,42.52184482]
[1734552178272,42.52184482,210.8,210.71,42.52184482]
[1734552178475,2.3708,210.9,210.73,42.52184482]
[1734552178782,42.52184482,210.93,210.84,42.52184482]
[1734552178961,42.52184482,211.0,210.89,42.52184482]
[1734552179160,42.52184482,211.0,210.87,20.0]
[1734552179161,42.52184482,211.05,210.95,42.52184482]
[1734552179672,42.52184482,210.99,210.9,23.776884]
[1734552179860,42.52184482,210.99,210.89,42.52184482]
[1734552180163,42.52184482,210.93,210.85,42.52184482]
[1734552180364,42.52184482,210.91,210.83,42.52184482]
[1734552180579,42.52184482,210.89,210.81,42.52184482]
[1734552180779,42.52184482,210.91,210.81,42.52184482]
[1734552180997,42.52184482,210.87,210.77,42.52184482]
[1734552181294,20.0,210.91,210.75,42.47744673]
[1734552181804,18.97153,210.9,210.77,42.47744673]
[1734552181962,18.97153,210.9,210.79,42.47744673]
[1734552182165,20.0,210.87,210.73,50.37384673]
[1734552182366,20.0,210.87,210.69,42.47744673]
[1734552182614,20.0,210.87,210.64,12.3451]
[1734552182615,20.0,210.87,210.67,42.47744673]
[1734552182767,20.0,210.83,210.67,42.47744673]
[1734552182969,20.0,210.83,210.65,42.47744673]
[1734552183170,3.5568,210.86,210.67,42.47744673]
[1734552183389,3.5568,210.86,210.64,12.3451]
[1734552183390,23.776884,210.85,210.71,42.47744673]
[1734552183598,3.5568,210.86,210.65,42.47744673]
[1734552183917,3.5563,210.89,210.75,42.47744673]
[1734552184086,18.97153,210.9,210.77,42.47744673]
[1734552184282,18.97153,210.9,210.67,0.12549]
[1734552184468,3.5563,210.89,210.73,42.47744673]
[1734552184861,3.5563,210.89,210.71,42.47744673]
[1734552185269,18.97153,210.9,210.71,42.47744673]
[1734552185467,18.97153,210.9,210.78,42.47744673]
[1734552185789,6.90619759,210.97,210.84,42.47744673]
[1734552186002,6.90619759,210.97,210.88,42.47744673]
[1734552186219,25.86332959,211.02,210.94,42.47744673]
[1734552186516,6.90619759,211.02,210.96,42.47744673]
[1734552186702,6.90619759,211.05,211.01,42.47744673]
[1734552187014,6.90619759,211.05,211.03,42.47744673]
[1734552187189,6.90619759,211.08,211.03,42.47744673]
[1734552187371,6.90619759,211.08,211.06,42.47744673]
[1734552187769,6.90619759,211.08,210.99,42.47744673]
[1734552188009,6.90619759,211.16,211.07,42.47744673]
[1734552188176,6.90619759,211.16,210.9,55.5617]
[1734552188177,2.78397704,211.13,210.99,42.47744673]
[1734552188500,18.950448,211.1,210.99,42.47744673]
[1734552188674,18.950448,211.1,210.97,42.47744673]
[1734552188877,18.950448,211.1,210.89,42.47744673]
[1734552189394,20.0,211.05,210.89,42.47744673]
[1734552189593,20.0,211.05,210.93,42.47744673]
[1734552189802,20.0,211.07,210.95,42.47744673]
[1734552189981,20.0,211.07,210.93,42.47744673]
[1734552190188,23.776884,211.02,210.85,13.252]
[1734552190391,20.0,210.99,210.8,42.47744673]
[1734552190572,20.0,210.99,210.78,42.47744673]
[1734552190774,20.0,210.95,210.74,12.9965]
[1734552191093,20.0,210.87,210.7,7.8452]
[1734552191393,20.0,210.87,210.64,12.5176]
[1734552191599,23.776884,210.82,210.64,12.5176]
[1734552191783,20.0,210.75,210.58,42.47744673]
[1734552192096,20.0,210.75,210.6,42.47744673]
[1734552192294,30.0,210.8,210.58,42.47744673]
[1734552192497,20.0,210.77,210.57,7.6014]
[1734552192795,23.776884,210.79,210.62,42.47744673]
[1734552192994,3.558,210.79,210.62,42.47744673]
[1734552193184,3.558,210.79,210.6,42.47744673]
[1734552193504,3.5572,210.84,210.63,0.12549]
[1734552193677,2.78465617,210.74,210.62,42.47744673]
[1734552193884,3.5572,210.84,210.62,42.47744673]
[1734552194098,20.0,210.82,210.6,62.47744673]
[1734552194273,20.0,210.82,210.62,42.47744673]
[1734552194473,20.0,210.82,210.6,0.71187593]
[1734552194709,20.0,210.81,210.6,0.71187593]
[1734552194993,20.0,210.79,210.6,0.71187593]
[1734552195202,20.0,210.79,210.56,60.46615752]
[1734552195400,8.51882387,210.8,210.59,42.47744673]
[1734552195571,3.5578,210.8,210.57,42.47744673]
[1734552195768,3.5578,210.8,210.61,42.47744673]
[1734552195994,3.5571,210.85,210.67,42.47744673]
[1734552196202,3.5571,210.85,210.66,42.47744673]
[1734552196382,36.43094815,210.91,210.75,62.47744673]
[1734552196383,3.5562,210.9,210.75,62.47744673]
[1734552196576,3.5562,210.9,210.68,7.5309]
[1734552196577,30.0,210.94,210.8,42.47744673]
[1734552196883,30.0,210.94,210.76,12.6261]
[1734552196884,3.5556,210.93,210.79,42.47744673]
[1734552197194,3.5548,210.98,210.9,42.47744673]
[1734552197598,3.5541,211.03,210.94,42.47744673]
[1734552197810,0.0479421,211.04,210.94,42.47744673]
[1734552197980,0.0479421,211.04,210.92,42.47744673]
[1734552198186,2.90006047,211.03,210.94,42.47744673]
[1734552198502,41.58422494,211.19,210.97,20.5488]
[1734552198687,2.91485669,211.03,210.97,12.3222]
[1734552199010,44.63414315,211.25,211.05,0.12549]
[1734552199011,9.02550798,211.25,211.05,0.12549]
[1734552199203,9.02550798,211.25,211.11,42.47744673]
[1734552199389,4.7339,211.24,211.11,42.47744673]
[1734552199723,4.7339,211.24,210.98,0.71026144]
[1734552199879,4.7339,211.24,210.99,42.47744673]
[1734552200196,4.7339,211.24,211.02,42.47744673]
[1734552200197,30.0,211.19,211.02,42.47744673]
[1734552200404,30.0,211.19,210.92,42.47744673]
[1734552200603,30.0,211.22,210.97,42.47744673]
[1734552200808,30.0,211.22,211.03,42.47744673]
[1734552201005,14.2038,211.21,210.95,42.47744673]
[1734552201304,30.0,211.18,210.94,42.47744673]
[1734552201519,20.0,211.15,210.92,42.47744673]
[1734552201701,50.0,211.15,210.86,42.47744673]
[1734552202008,50.0,211.15,210.79,42.47744673]
[1734552202191,20.0,211.09,210.8,2.87934675]
[1734552202398,23.776884,211.04,210.79,42.47744673]
[1734552202709,20.0,210.93,210.78,12.6092]
[1734552202882,20.0,210.93,210.74,8.0267]
[1734552202883,14.2233,210.92,210.74,8.0267]
[1734552203089,14.2233,210.92,210.54,3.36523772]
[1734552203090,20.0,210.88,210.63,0.71152453]
[1734552203395,20.0,210.82,210.59,0.71169076]
[1734552203589,20.0,210.82,210.55,55.70974673]
[1734552203790,23.776884,210.81,210.57,42.47744673]
[1734552203992,20.0,210.74,210.55,13.2323]
[1734552204182,23.776884,210.73,210.55,13.2323]
[1734552204386,20.0,210.74,210.55,55.70974673]
[1734552204580,30.0,210.82,210.58,42.47744673]
[1734552204782,43.776884,210.78,210.55,13.2323]
[1734552205094,4.7454,210.73,210.55,55.70974673]
[1734552205283,23.776884,210.77,210.61,42.47744673]
[1734552205483,24.7443,210.78,210.57,43.18950288]
[1734552205808,20.0,210.74,210.59,42.47744673]
[1734552205992,4.7443,210.78,210.57,43.18950288]
[1734552206402,20.0,210.75,210.55,13.2323]
[1734552206611,20.0,210.74,210.55,13.2323]
[1734552206989,20.0,210.7,210.55,13.2323]
[1734552207303,20.0,210.66,210.55,13.2323]
[1734552207510,20.0,210.66,210.54,3.36523772]
[1734552207688,20.0,210.67,210.54,3.36523772]
[1734552208010,20.0,210.63,210.54,3.36523772]
[1734552208315,14.2375,210.71,210.54,3.36523772]
[1734552208608,23.776884,210.7,210.54,15.94763772]
[1734552208808,4.7448,210.76,210.56,102.94360425]
[1734552209111,9.4885,210.78,210.57,42.47744673]
[1734552209316,9.4885,210.78,210.61,42.47744673]
[1734552209518,4.7436,210.81,210.61,42.47744673]
[1734552209695,4.7436,210.81,210.63,42.47744673]
[1734552209892,4.7413,210.91,210.67,42.47744673]
[1734552210101,4.7413,210.91,210.65,42.47744673]
[1734552210407,4.7413,210.91,210.63,42.47744673]
[1734552210594,4.7413,210.91,210.65,42.47744673]
[1734552210798,0.71173585,210.9,210.61,42.47744673]
[1734552210992,4.7418,210.89,210.63,42.47744673]
[1734552211213,0.71173585,210.88,210.61,0.71178947]
[1734552211505,0.71173585,210.88,210.61,42.47744673]
[1734552211704,0.71173585,210.88,210.68,42.47744673]
[1734552211900,0.71173585,210.88,210.75,42.47744673]
[1734552212104,0.71173585,210.93,210.77,42.47744673]
[1734552212302,0.71173585,210.93,210.83,42.47744673]
[1734552212504,0.71173585,210.98,210.88,12.6772]
[1734552212730,0.71173585,211.05,210.89,42.47744673]
[1734552212891,0.71173585,211.05,210.91,42.47744673]
[1734552213093,0.71173585,211.05,210.95,42.47744673]
[1734552213339,0.71173585,211.1,210.89,43.1885445]
[1734552213512,0.71173585,211.1,210.94,42.47744673]
[1734552213695,0.71173585,211.1,210.96,42.47744673]
[1734552213901,0.71173585,211.15,210.93,42.47744673]
[1734552214111,0.71173585,211.15,210.94,0.71097191]
[1734552214411,0.71173585,211.15,210.92,50.22314673]
[1734552214643,0.71173585,211.15,210.92,20.0]
[1734552214644,6.31139424,210.99,210.92,20.0]
[1734552214942,41.58422494,211.04,210.94,42.47744673]
[1734552215145,41.58422494,211.04,211.0,42.47744673]
[1734552215369,41.58422494,211.04,210.98,42.47744673]
[1734552215523,41.58422494,211.04,211.0,42.47744673]
[1734552215853,41.58422494,211.04,211.01,42.47744673]
[1734552216018,19.91762494,211.04,211.03,42.47744673]
[1734552216359,44.08719318,211.07,211.03,42.47744673]
[1734552216587,44.08719318,211.07,211.06,42.47744673]
[1734552216713,44.08719318,211.07,211.06,42.60293673]
[1734552216915,44.08719318,211.07,211.03,42.47744673]
[1734552217353,44.08719318,211.07,210.96,2.89643114]
[1734552217555,44.08719318,211.07,210.96,42.47744673]
[1734552217765,44.08719318,211.07,210.9,42.47744673]
[1734552217933,0.88845594,211.06,210.79,11.8599]
[1734552218133,20.0,211.04,210.87,45.25883956]
[1734552218325,20.0,210.99,210.78,42.47744673]
[1734552218520,0.88886331,210.98,210.8,2.87688154]
[1734552218749,0.88886331,210.98,210.72,42.47744673]
[1734552219045,28.517784,210.93,210.68,42.47744673]
[1734552219214,7.6193,210.89,210.64,42.47744673]
[1734552219539,23.776884,210.85,210.62,42.47744673]
[1734552219722,20.0,210.82,210.6,42.47744673]
[1734552219915,20.0,210.77,210.56,60.46615752]
[1734552220111,0.8898322,210.76,210.56,60.46615752]
[1734552220646,0.8898322,210.76,210.56,102.94360425]
[1734552220819,2.86339853,210.77,210.58,42.47744673]
[1734552221023,2.86339853,210.77,210.6,42.47744673]
[1734552221024,0.88985544,210.76,210.6,42.47744673]
[1734552221229,0.88978769,210.76,210.57,2.51575306]
[1734552221549,23.776884,210.75,210.56,60.46615752]
[1734552221746,0.89012355,210.74,210.58,42.47744673]
[1734552221915,2.86339853,210.77,210.62,42.47744673]
[1734552222116,0.88972939,210.76,210.58,42.47744673]
[1734552222318,0.88972939,210.76,210.63,2.46337831]
[1734552222538,4.7436,210.81,210.63,2.46337831]
[1734552222738,0.88986609,210.8,210.56,102.94360425]
[1734552223048,2.8219255,210.64,210.62,42.47744673]
[1734552223212,0.88964388,210.85,210.65,0.12549]
[1734552223418,0.88964388,210.85,210.68,0.12549]
[1734552223641,4.7429,210.84,210.62,7.20849613]
[1734552223830,0.88996264,210.83,210.62,7.20849613]
[1734552224025,2.86379299,210.69,210.67,7.20849613]
[1734552224528,2.86379299,210.69,210.64,7.20849613]
[1734552224721,2.86379299,210.69,210.61,8.21578982]
[1734552224722,20.0,210.65,210.61,8.21578982]
[1734552224922,0.89038086,210.64,210.61,7.37753032]
[1734552225135,4.7476,210.63,210.61,4.73033032]
[1734552225341,20.89046315,210.62,210.61,0.10453032]
[1734552225552,20.89046315,210.62,210.56,60.46615752]
[1734552226230,4.7481,210.61,210.56,60.46615752]
[1734552226415,20.0,210.62,210.56,60.46615752]
[1734552226629,23.776884,210.67,210.56,60.46615752]
[1734552226833,0.88687436,210.66,210.56,60.46615752]
[1734552227042,23.776884,210.67,210.56,60.46615752]
[1734552227253,5.63520688,210.75,210.6,3.03602224]
[1734552227569,0.8902247,210.74,210.6,3.03602224]
[1734552227935,0.8902247,210.74,210.62,3.03602224]
[1734552228141,0.88985336,210.78,210.62,3.03602224]
[1734552228448,14.2335,210.77,210.6,3.03602224]
[1734552228757,0.89002309,210.76,210.6,3.03602224]
[1734552228940,0.89002309,210.76,210.58,3.03602224]
[1734552229379,0.89002309,210.76,210.57,0.76752556]
[1734552229546,0.89002309,210.76,210.57,0.64203556]
[1734552229936,0.89002309,210.76,210.58,0.12549]
[1734552230275,0.89002309,210.76,210.57,0.6414578]
[1734552230437,5.63501663,210.75,210.56,60.46615752]
[1734552231482,23.776884,210.7,210.56,60.46615752]
[1734552231657,20.0,210.67,210.56,60.46615752]
[1734552231971,0.89028169,210.69,210.56,61.10847173]
[1734552232175,0.890028,210.74,210.56,61.10847173]
[1734552232378,0.88990643,210.75,210.57,0.12549]
[1734552232536,0.88971336,210.78,210.59,0.12549]
[1734552232740,0.8897154,210.83,210.65,20.0]
[1734552232961,0.8897154,210.83,210.66,0.64078511]
[1734552233453,4.7433,210.82,210.66,0.64078511]
[1734552233656,0.88960372,210.81,210.61,23.776884]
[1734552233936,4.7424,210.87,210.62,43.11837578]
[1734552234152,4.7429,210.84,210.62,0.64092905]
[1734552234359,24.36933881,210.83,210.62,0.64092905]
[1734552234581,23.61927141,210.85,210.67,0.12549]
[1734552234752,14.19844563,210.86,210.74,0.12549]
[1734552234958,15.08754344,210.89,210.75,0.63994646]
[1734552235151,15.08754344,210.89,210.68,0.64040676]
[1734552235657,23.30177108,210.87,210.68,0.64040676]
[1734552235975,24.23602657,210.86,210.64,0.64089833]
[1734552236279,4.7427,210.85,210.66,42.47744673]
[1734552236493,20.0,210.82,210.6,0.64074753]
[1734552236786,20.0,210.74,210.6,0.64074753]
[1734552236960,14.19844563,210.75,210.65,42.47744673]
[1734552237289,14.19844563,210.75,210.67,42.47744673]
[1734552237491,14.19844563,210.75,210.71,42.47744673]
[1734552237677,14.19844563,210.75,210.73,42.47744673]
[1734552237985,14.19844563,210.75,210.72,0.64030593]
[1734552238372,0.86514563,210.77,210.74,0.12549]
[1734552238578,0.86514563,210.77,210.76,36.36304628]
[1734552238891,61.4505443,210.97,210.81,23.776884]
[1734552238892,56.7104443,210.97,210.81,23.776884]
[1734552239191,56.7104443,210.97,210.82,36.87684027]
[1734552239490,56.7104443,210.97,210.76,36.23755628]
[1734552239491,0.88876845,210.96,210.76,36.23755628]
[1734552239657,0.88876845,210.96,210.74,0.63928774]
[1734552239855,0.88876845,210.96,210.7,0.64044193]
[1734552240060,3.13153832,210.95,210.7,0.64044193]
[1734552240281,0.88950558,210.94,210.7,0.64044193]
[1734552240485,14.2227,210.93,210.7,0.64044193]
[1734552240655,0.88928382,210.92,210.74,0.12549]
[1734552240856,20.0,210.9,210.75,36.87787475]
[1734552241277,0.88910346,210.89,210.75,0.64031847]
[1734552241484,0.88910346,210.89,210.67,0.64043812]
[1734552241994,0.88910346,210.89,210.71,36.23755628]
[1734552242161,24.7409,210.93,210.75,36.23755628]
[1734552242368,24.7418,210.9,210.72,0.64021721]
[1734552242684,0.88940855,210.89,210.69,0.64056794]
[1734552242855,7.8925,210.84,210.59,36.23755628]
[1734552243061,7.8925,210.84,210.6,0.64111865]
[1734552243062,20.0,210.81,210.6,0.64111865]
[1734552243301,23.776884,210.79,210.6,0.64111865]
[1734552243505,20.0,210.72,210.57,0.64170824]
[1734552243698,0.88995445,210.71,210.57,0.64170824]
[1734552243987,20.0,210.67,210.56,60.46615752]
[1734552244377,24.7467,210.67,210.56,60.46615752]
[1734552244570,0.89013086,210.66,210.56,60.46615752]
[1734552244888,4.7433,210.82,210.56,60.46615752]
[1734552245072,20.0,210.78,210.57,36.23755628]
[1734552245268,20.0,210.74,210.58,0.64144189]
[1734552245590,20.0,210.65,210.56,60.46615752]
[1734552245761,0.89016858,210.64,210.56,60.46615752]
[1734552245964,266.32341452,210.84,210.56,60.46615752]
[1734552246184,23.776884,210.83,210.56,60.46615752]
[1734552246482,24.02496459,210.83,210.59,36.23755628]
[1734552246685,0.24808059,210.83,210.63,36.23755628]
[1734552247054,0.24808059,210.83,210.6,0.71194666]
[1734552247261,9.4888,210.78,210.56,60.46615752]
[1734552247462,0.24808059,210.77,210.56,60.46615752]
[1734552248084,0.24808059,210.77,210.57,36.23755628]
[1734552248461,20.0,210.73,210.56,60.46615752]
[1734552248673,0.24808059,210.72,210.56,60.46615752]
[1734552248879,0.24808059,210.72,210.57,36.23755628]
[1734552249075,0.24808059,210.72,210.56,60.46615752]
[1734552249479,20.0,210.69,210.56,60.46615752]
[1734552249674,20.0,210.61,210.56,60.46615752]
[1734552249916,20.0,210.57,210.56,54.14835752]
[1734552250202,43.776884,210.57,210.56,37.69605752]
[1734552250379,43.776884,210.57,210.56,13.32805752]
[1734552250578,48.525884,210.57,210.54,3.36523772]
[1734552250799,24.02496459,210.56,210.51,0.5778719]
[1734552251007,23.776884,210.52,210.51,0.5778719]
[1734552251202,24.02496459,210.52,210.51,0.5778719]
[1734552251803,0.24808059,210.52,210.51,0.5778719]
[1734552252004,24.02496459,210.52,210.51,0.5778719]
[1734552252510,0.24808059,210.52,210.51,0.5778719]
[1734552252688,20.0,210.54,210.51,0.5778719]
[1734552253083,0.24808059,210.53,210.51,0.5778719]
[1734552253291,24.02496459,210.53,210.51,0.5778719]
[1734552253808,8.0948,210.61,210.51,0.5778719]
[1734552253809,0.24808059,210.57,210.51,0.5778719]
[1734552254015,0.24808059,210.6,210.51,0.5778719]
[1734552254198,4.749,210.57,210.51,7.19e-05]
[1734552254508,0.24808059,210.56,210.51,7.19e-05]
[1734552254698,4.7494,210.55,210.51,7.19e-05]
[1734552255494,4.7485,210.59,210.51,7.19e-05]
[1734552255700,14.2432,210.63,210.51,36.94985245]
[1734552255902,4.7477,210.63,210.53,36.23755628]
[1734552256092,4.7477,210.63,210.54,0.71209359]
[1734552256495,0.24808059,210.62,210.51,0.71228247]
[1734552256797,4.7481,210.61,210.51,7.19e-05]
[1734552257390,0.24808059,210.6,210.51,7.19e-05]
[1734552257916,9.493,210.59,210.51,7.19e-05]
[1734552258116,0.24808059,210.58,210.51,7.19e-05]
[1734552258419,14.2443,210.59,210.51,7.19e-05]
[1734552258584,3.56,210.67,210.51,7.19e-05]
[1734552258789,3.56,210.67,210.57,36.23755628]
[1734552259011,18.987713,210.69,210.58,0.7120233]
[1734552259200,3.5594,210.71,210.58,0.7120233]
[1734552259599,0.24808059,210.74,210.59,36.23755628]
[1734552259805,3.5583,210.78,210.65,36.23755628]
[1734552260020,25.24376401,210.82,210.67,36.23755628]
[1734552260200,0.24808059,210.81,210.68,0.71160171]
[1734552260387,6.26687201,210.9,210.69,36.23755628]
[1734552260388,3.5565,210.88,210.69,36.23755628]
[1734552260599,0.24808059,210.87,210.7,0.71151345]
[1734552260792,18.971932,210.84,210.69,36.23755628]
[1734552261124,18.971932,210.84,210.57,2.91144957]
[1734552261125,10.6705,210.86,210.7,0.71161656]
[1734552261292,0.24808059,210.83,210.59,36.23755628]
[1734552261496,0.24808059,210.83,210.58,0.7116829]
[1734552261716,6.1907901,210.82,210.54,36.23755628]
[1734552261923,0.24808059,210.81,210.55,0.7120252]
[1734552262089,0.24808059,210.81,210.51,7.19e-05]
[1734552262090,18.8758901,210.8,210.51,0.71221389]
[1734552262411,20.0,210.75,210.51,7.19e-05]
[1734552262612,20.0,210.67,210.51,7.19e-05]
[1734552262829,3.5597,210.69,210.51,7.19e-05]
[1734552262830,20.0,210.63,210.51,7.19e-05]
[1734552262989,0.24808059,210.65,210.51,7.19e-05]
[1734552263192,23.776884,210.68,210.51,36.23762818]
[1734552263495,0.24808059,210.67,210.52,0.71203229]
[1734552263799,0.24808059,210.67,210.51,0.71217536]
[1734552263992,3.5597,210.69,210.56,36.23755628]
[1734552264234,3.5589,210.74,210.57,0.71194163]
[1734552264396,0.24808059,210.73,210.57,0.71194163]
[1734552264908,3.5582,210.78,210.6,36.23755628]
[1734552265121,7.5791,210.89,210.51,7.19e-05]
[1734552265122,0.24808059,210.84,210.64,36.23755628]
[1734552265320,3.5574,210.83,210.68,36.23755628]
[1734552265520,42.63039479,210.87,210.69,0.71142209]
[1734552265723,0.24808059,210.86,210.69,0.71142209]
[1734552265908,0.24808059,210.86,210.65,0.71152911]
[1734552266420,3.13532501,210.85,210.61,0.71171222]
[1734552266727,48.67808059,210.84,210.52,36.23755628]
[1734552266934,23.5577,210.81,210.53,0.71201958]
[1734552267114,20.0,210.75,210.53,0.71201958]
[1734552267313,23.776884,210.7,210.53,0.71201958]
[1734552267517,20.0,210.63,210.51,0.71228749]
[1734552267713,23.776884,210.62,210.51,0.71228749]
[1734552267909,0.24808059,210.65,210.51,7.19e-05]
[1734552268106,24.02496459,210.65,210.51,7.19e-05]
[1734552268430,20.0,210.75,210.52,36.23755628]
[1734552268738,18.984189,210.68,210.53,0.7119475]
[1734552268900,44.02496459,210.74,210.53,0.7119475]
[1734552269105,20.0,210.69,210.53,0.7119475]
[1734552269401,20.0,210.65,210.53,0.7119475]
[1734552269615,23.776884,210.6,210.51,7.19e-05]
[1734552269822,20.0,210.61,210.51,7.19e-05]
[1734552270309,20.0,210.57,210.51,7.19e-05]
[1734552270509,24.02496459,210.56,210.51,7.19e-05]
[1734552270827,8.2317,210.68,210.51,7.19e-05]
[1734552271019,20.0,210.6,210.51,7.19e-05]
[1734552271222,24.02496459,210.59,210.51,7.19e-05]
[1734552271403,20.0,210.56,210.51,7.19e-05]
[1734552271810,3.5609,210.62,210.51,7.19e-05]
[1734552272035,0.24808059,210.61,210.51,7.19e-05]
[1734552272240,0.24808059,210.64,210.51,7.19e-05]
[1734552273121,23.776884,210.58,210.51,7.19e-05]
[1734552273324,23.776884,210.54,210.51,7.19e-05]
[1734552273626,20.0,210.55,210.51,7.19e-05]
[1734552273832,20.0,210.6,210.51,7.19e-05]
[1734552274029,3.5593,210.71,210.52,36.23755628]
[1734552274214,0.24808059,210.7,210.53,0.71200768]
[1734552274413,0.24808059,210.7,210.52,0.71215673]
[1734552274712,0.24808059,210.7,210.51,7.19e-05]
[1734552275350,10.6791,210.69,210.51,7.19e-05]
[1734552275640,3.5597,210.69,210.54,36.23755628]
[1734552275855,22.545976,210.73,210.58,36.23755628]
[1734552276009,28.3848275,210.71,210.51,7.19e-05]
[1734552276213,0.24808059,210.7,210.51,7.19e-05]
[1734552277339,24.02496459,210.72,210.51,7.19e-05]
[1734552277539,23.776884,210.68,210.51,7.19e-05]
[1734552277745,41.0925,210.63,210.51,7.19e-05]
[1734552278054,28.43,210.59,210.51,7.19e-05]
[1734552278338,20.0,210.49,210.42,133.9717]
[1734552278638,0.24808059,210.48,210.42,120.7922]
[1734552279029,20.0,210.45,210.42,120.7922]
[1734552279622,2.3759,210.44,210.42,120.7922]
[1734552279955,20.0,210.45,210.42,120.7922]
[1734552280311,2.3751,210.52,210.42,120.7922]
[1734552280648,0.24808059,210.51,210.42,116.9224]
[1734552281024,0.24808059,210.51,210.42,50.0737]
[1734552281224,0.24808059,210.51,210.42,37.0447]